fUST/lending_fUST_20260219
["ID","MTS","AMOUNT","RATE_DAILY","PERIOD"]
[405984025,1771492816943,435.47,5.2e-05,2]
[405984026,1771492817510,435.47,5.2e-05,2]
[405984027,1771492818092,435.47,5.2e-05,2]
[405984028,1771492818748,435.47,5.2e-05,2]
[405984029,1771492819220,435.47,5.3e-05,2]
[405984030,1771492819812,435.47,5.3e-05,2]
[405984031,1771492821290,435.47,5.3e-05,2]
[405984032,1771492827049,435.47,5.3e-05,2]
[405984033,1771492830664,117.65,5.3e-05,2]
[405984035,1771493253878,3094.13525944,5e-05,2]
[405984036,1771493359152,-5000.0,5.092e-05,2]
[405984037,1771493359172,-1200.0,5.194e-05,2]
[405984038,1771493359191,-317.82,5.3e-05,2]
[405984039,1771493359211,-435.47,5.3e-05,2]
[405984040,1771493359230,-435.47,5.3e-05,2]
[405984041,1771493359250,-435.47,5.3e-05,2]
[405984042,1771493359268,-435.47,5.3e-05,2]
[405984043,1771493359286,-435.47,5.3e-05,2]
[405984044,1771493359304,-649.47807233,5.398e-05,2]
[405984045,1771493359324,-500.0,5.398e-05,2]
[405984046,1771493359344,-500.0,5.398e-05,2]
[405984047,1771493359363,-500.0,5.398e-05,2]
[405984048,1771493359382,-500.0,5.398e-05,2]
[405984049,1771493359402,-500.0,5.398e-05,2]
[405984050,1771493359422,-500.0,5.398e-05,2]
[405984051,1771493359442,-484.98607028,5.398e-05,2]
[405984080,1771493438259,-515.36068642,5.344e-05,2]
[405984081,1771493438366,-4484.63931358,5.344e-05,2]
[405984082,1771493438376,-500.0,5.397e-05,2]
[405984083,1771493438386,-500.0,5.397e-05,2]
[405984084,1771493438395,-500.0,5.397e-05,2]
[405984085,1771493438405,-500.0,5.397e-05,2]
[405984086,1771493438415,-500.0,5.397e-05,2]
[405984088,1771493438424,-500.0,5.397e-05,2]
[405984090,1771493438433,-500.0,5.397e-05,2]
[405984092,1771493438442,-500.0,5.397e-05,2]
[405984094,1771493438452,-500.0,5.397e-05,2]
[405984096,1771493438462,-500.0,5.397e-05,2]
[405984098,1771493438471,-500.0,5.397e-05,2]
[405984100,1771493438481,-500.0,5.397e-05,2]
[405984102,1771493438490,-500.0,5.397e-05,2]
[405984104,1771493438500,-500.0,5.397e-05,2]
[405984106,1771493438510,-500.0,5.397e-05,2]
[405984108,1771493438520,-500.0,5.397e-05,2]
[405984109,1771493438529,-500.0,5.397e-05,2]
[405984110,1771493438539,-454.32428964,5.397e-05,2]
[405984111,1771493438548,-500.0,5.397e-05,2]
[405984112,1771493438559,-435.51084466,5.397e-05,2]
[405984113,1771493438568,-500.0,5.397e-05,2]
[405984114,1771493438577,-500.0,5.397e-05,2]
[405984115,1771493438587,-500.0,5.397e-05,2]
[405984116,1771493438597,-500.0,5.397e-05,2]
[405984117,1771493438610,-500.0,5.397e-05,2]
[405984118,1771493438619,-500.0,5.397e-05,2]
[405984119,1771493438628,-500.0,5.397e-05,2]
[405984120,1771493438637,-500.0,5.397e-05,2]
[405984121,1771493438647,-500.0,5.397e-05,2]
[405984122,1771493438656,-500.0,5.397e-05,2]
[405984123,1771493438666,-500.0,5.397e-05,2]
[405984124,1771493438676,-474.21822997,5.397e-05,2]
[405984125,1771493438685,-500.0,5.397e-05,2]
[405984126,1771493438695,-500.0,5.397e-05,2]
[405984127,1771493438705,-500.0,5.397e-05,2]
[405984128,1771493438714,-500.0,5.397e-05,2]
[405984129,1771493438723,-500.0,5.397e-05,2]
[405984130,1771493438733,-500.0,5.397e-05,2]
[405984131,1771493438742,-500.0,5.397e-05,2]
[405984132,1771493438751,-500.0,5.397e-05,2]
[405984133,1771493438760,-500.0,5.397e-05,2]
[405984134,1771493438769,-500.0,5.397e-05,2]
[405984135,1771493438779,-500.0,5.397e-05,2]
[405984136,1771493438788,-168.0728046,5.397e-05,2]
[405984137,1771493438797,-500.0,5.397e-05,2]
[405984138,1771493438805,-500.0,5.397e-05,2]
[405984139,1771493438815,-500.0,5.397e-05,2]
[405984140,1771493438824,-500.0,5.397e-05,2]
[405984141,1771493438833,-500.0,5.397e-05,2]
[405984142,1771493438843,-500.0,5.397e-05,2]
[405984143,1771493438852,-500.0,5.397e-05,2]
[405984144,1771493438861,-500.0,5.397e-05,2]
[405984145,1771493438870,-500.0,5.397e-05,2]
[405984146,1771493438880,-247.49540601,5.397e-05,2]
[405984147,1771493438890,-500.0,5.397e-05,2]
[405984148,1771493438899,-500.0,5.397e-05,2]
[405984149,1771493438909,-500.0,5.397e-05,2]
[405984150,1771493438918,-500.0,5.397e-05,2]
[405984151,1771493438930,-500.0,5.397e-05,2]
[405984152,1771493438943,-500.0,5.397e-05,2]
[405984153,1771493438953,-500.0,5.397e-05,2]
[405984154,1771493438963,-500.0,5.397e-05,2]
[405984155,1771493438972,-500.0,5.397e-05,2]
[405984156,1771493438982,-500.0,5.397e-05,2]
[405984157,1771493438991,-435.47,5.4e-05,2]
[405984158,1771493439001,-435.47,5.4e-05,2]
[405984159,1771493439010,-435.47,5.4e-05,2]
[405984160,1771493439020,-435.47,5.4e-05,2]
[405984161,1771493439030,-435.47,5.4e-05,2]
[405984162,1771493439040,-435.47,5.4e-05,2]
[405984163,1771493439049,-435.47,5.4e-05,2]
[405984164,1771493439059,-435.47,5.4e-05,2]
[405984165,1771493439068,-435.47,5.4e-05,2]
[405984166,1771493439077,-435.47,5.4e-05,2]
[405984167,1771493439087,-500.0,5.479e-05,2]
[405984168,1771493439100,-500.0,5.479e-05,2]
[405984169,1771493439109,-632.0219626,5.479e-05,2]
[405984170,1771493439118,-435.47,5.5e-05,2]
[405984171,1771493439127,-435.47,5.5e-05,2]
[405984172,1771493439136,-435.47,5.5e-05,2]
[405984173,1771493439145,-435.47,5.5e-05,2]
[405984174,1771493439154,-435.47,5.5e-05,2]
[405984175,1771493439163,-335.39811668,8.219e-05,2]
[405984176,1771493439173,-500.0,0.00013273,2]
[405984177,1771493439181,-160.38478798,0.00013273,2]
[405984178,1771493439190,-2049.99,0.00013698,2]
[405984179,1771493439199,-2049.99,0.00013698,2]
[405984180,1771493439207,-2049.99,0.00013698,2]
[405984181,1771493439219,-2049.99,0.00013698,2]
[405984182,1771493439228,-500.0,0.00013699,2]
[405984183,1771493439237,-500.0,0.00013699,2]
[405984184,1771493439246,-500.0,0.00013699,2]
[405984185,1771493439255,-500.0,0.00013699,2]
[405984186,1771493439265,-500.0,0.00013699,2]
[405984187,1771493439274,-500.0,0.00013699,2]
[405984188,1771493439283,-500.0,0.00013699,2]
[405984189,1771493439292,-500.0,0.00013699,2]
[405984190,1771493439301,-500.0,0.00013699,2]
[405984191,1771493439388,-500.0,0.00013699,2]
[405984192,1771493439414,-500.0,0.00013699,2]
[405984193,1771493439423,-500.0,0.00013699,2]
[405984194,1771493439432,-500.0,0.00013699,2]
[405984195,1771493439441,-500.0,0.00013699,2]
[405984196,1771493439450,-500.0,0.00013699,2]
[405984197,1771493439460,-500.0,0.00013699,2]
[405984198,1771493439469,-279.42614451,0.00013699,2]
[405984199,1771493439478,-500.0,0.00013699,2]
[405984200,1771493439488,-500.0,0.00013699,2]
[405984201,1771493439497,-500.0,0.00013699,2]
[405984202,1771493439508,-500.0,0.00013699,2]
[405984203,1771493439517,-500.0,0.00013699,2]
[405984204,1771493439527,-211.27370956,0.00013699,2]
[405984205,1771493439539,-288.72629044,0.00013699,2]
[405984206,1771493439549,-271.61079945,0.00013699,2]
[405984207,1771493439561,-228.38920055,0.00013699,2]
[405984208,1771493439572,-500.0,0.00013699,2]
[405984209,1771493439582,-500.0,0.00013699,2]
[405984210,1771493439599,-500.0,0.00013699,2]
[405984211,1771493439621,-64.5368179,0.00013699,2]
[405984212,1771493439647,-435.4631821,0.00013699,2]
[405984213,1771493439656,-500.0,0.00013699,2]
[405984214,1771493439665,-500.0,0.00013699,2]
[405984215,1771493439675,-110.1350365,0.00013699,2]
[405984217,1771493440480,-389.8649635,0.00013699,2]
[405984218,1771493440489,-417.22520236,0.00013699,2]
[405984219,1771493440500,-82.77479764,0.00013699,2]
[405984220,1771493440509,-500.0,0.00013699,2]
[405984221,1771493440518,-500.0,0.00013699,2]
[405984222,1771493440527,-95.15994441,0.00013699,2]
[405984223,1771493440538,-404.84005559,0.00013699,2]
[405984224,1771493440547,-500.0,0.00013699,2]
[405984225,1771493440555,-500.0,0.00013699,2]
[405984226,1771493440564,-500.0,0.00013699,2]
[405984227,1771493440573,-500.0,0.00013699,2]
[405984228,1771493440582,-500.0,0.00013699,2]
[405984229,1771493440592,-406.67636616,0.00013821,2]
[405984230,1771493440778,-1977.0,5.291e-05,2]
[405984254,1771493446204,-3023.0,5.291e-05,2]
[405984255,1771493446215,-593.32363384,0.00013821,2]
[405984256,1771493446225,-2049.99,0.00016054,2]
[405984257,1771493446234,-1663.534654,0.00016055,2]
[405984258,1771493446245,-151.0,0.00018193,5]
[405984259,1771493446254,-508.24169942,0.0002,2]
[405984260,1771493446263,-500.0,0.0002,2]
[405984261,1771493446272,-500.0,0.0002,5]
[405984262,1771493446281,-500.0,0.0002,2]
[405984263,1771493446290,-500.0,0.0002,5]
[405984264,1771493446300,-500.0,0.0002,2]
[405984265,1771493446312,-500.0,0.0002,2]
[405984266,1771493446321,-17919.95790815,0.0002,2]
[405984267,1771493446331,-600.0,0.00020011,2]
[405984268,1771493446434,-2049.99,0.00020294,2]
[405984269,1771493446445,-394.7887703,0.00020295,2]
[405984270,1771493446455,-570.656268,0.00020295,2]
[405984271,1771493446464,-1383.40889445,0.00020295,2]
[405984272,1771493446483,-521.89981655,0.00020295,2]
[405984273,1771493446495,-4586.5579896,0.00020295,2]
[405984274,1771493446504,-3351.0912996,0.00020295,2]
[405984275,1771493446513,-242.0,0.00020939,120]
[405984276,1771493446522,-250.0,0.00020975,2]
[405984277,1771493446532,-250.0,0.00020975,2]
[405984278,1771493446542,-250.0,0.00020975,2]
[405984279,1771493446550,-250.0,0.00020975,2]
[405984280,1771493446560,-500.0,0.00020975,2]
[405984281,1771493446569,-250.0,0.00020975,2]
[405984282,1771493446578,-250.0,0.00020975,2]
[405984283,1771493446587,-500.0,0.00020975,2]
[405984284,1771493446597,-250.0,0.00020975,2]
[405984285,1771493446608,-250.0,0.00020975,2]
[405984286,1771493446618,-250.0,0.00020975,2]
[405984287,1771493446626,-500.0,0.00020975,2]
[405984288,1771493446636,-250.0,0.00020975,2]
[405984289,1771493446646,-250.0,0.00020975,2]
[405984290,1771493446655,-500.0,0.00020975,2]
[405984291,1771493446664,-250.0,0.00020975,2]
[405984292,1771493446673,-250.0,0.00020975,2]
[405984293,1771493446683,-111.22979015,0.00020975,2]
[405984302,1771493550155,500.0,5.397e-05,2]
[405984303,1771493550182,500.0,5.397e-05,2]
[405984304,1771493555610,409.16162919,5.397e-05,2]
[405984305,1771493555644,500.0,5.397e-05,2]
[405984306,1771493576424,500.0,5.397e-05,2]
[405984307,1771494047782,1381.75779705,9e-05,3]
[405984314,1771494393128,-1405.37126778,0.00013158,2]
[405984315,1771494393149,-3257.0114142,0.00013291,2]
[405984327,1771494632309,-1744.52839776,0.00012097,2]
[405984334,1771494638398,-674.61855636,0.00012097,2]
[405984335,1771494638410,-2304.7376116,0.00012097,2]
[405984340,1771494640604,-276.11543428,0.00012097,2]
[405984341,1771494640614,-150.0,0.00012158,2]
[405984342,1771494640625,-224.0993891,0.00012219,2]
[405984343,1771494640636,-399.71571411,0.00012695,2]
[405984344,1771494640646,-371.00426803,0.00012695,2]
[405984345,1771494640655,-500.0,0.00012695,2]
[405984346,1771494640663,-500.0,0.00012695,2]
[405984347,1771494640672,-500.0,0.00012695,2]
[405984348,1771494640681,-500.0,0.00012695,2]
[405984349,1771494640690,-181.33577362,0.00012695,2]
[405984350,1771494640702,-500.0,0.00012695,2]
[405984351,1771494640711,-500.0,0.00012695,2]
[405984352,1771494640722,-500.0,0.00012695,2]
[405984353,1771494640732,-500.0,0.00012695,2]
[405984354,1771494640743,-500.0,0.00012695,2]
[405984355,1771494640753,-603.01337203,0.00012695,2]
[405984356,1771494640761,-500.0,0.00012695,2]
[405984357,1771494640771,-500.0,0.00012695,2]
[405984358,1771494640780,-500.0,0.00012695,2]
[405984359,1771494640789,-500.0,0.00012695,2]
[405984360,1771494640798,-308.61898331,0.00012695,2]
[405984361,1771494640807,-500.0,0.00012695,2]
[405984362,1771494640817,-500.0,0.00012695,2]
[405984363,1771494640827,-500.0,0.00012695,2]
[405984364,1771494640837,-500.0,0.00012695,2]
[405984365,1771494640845,-500.0,0.00012695,2]
[405984366,1771494640855,-500.0,0.00012695,2]
[405984367,1771494640864,-500.0,0.00012695,2]
[405984368,1771494640873,-500.0,0.00012695,2]
[405984369,1771494640882,-500.0,0.00012695,2]
[405984370,1771494640892,-500.0,0.00012695,2]
[405984371,1771494640901,-500.0,0.00012695,2]
[405984372,1771494640910,-500.0,0.00012695,2]
[405984373,1771494640919,-500.0,0.00012695,2]
[405984374,1771494640930,-500.0,0.00012695,2]
[405984375,1771494640942,-500.0,0.00012695,2]
[405984376,1771494640952,-500.0,0.00012695,2]
[405984377,1771494640961,-500.0,0.00012695,2]
[405984378,1771494640970,-500.0,0.00012695,2]
[405984379,1771494640981,-500.0,0.00012695,2]
[405984380,1771494640990,-500.0,0.00012695,2]
[405984381,1771494641001,-500.0,0.00012695,2]
[405984382,1771494641011,-500.0,0.00012695,2]
[405984383,1771494641020,-184.63698509,0.00012695,2]
[405984384,1771494641030,-500.0,0.00012695,2]
[405984385,1771494641039,-500.0,0.00012695,2]
[405984386,1771494641049,-28.31008701,0.00012695,2]
[405984395,1771494644815,-601.26596546,0.00012568,2]
[405984396,1771494645607,-771.99000221,0.00012568,2]
[405984397,1771494645756,-518.04252022,0.00012568,2]
[405984399,1771494646387,-3108.70151211,0.00012568,2]
[405984400,1771494646396,-471.68991299,0.00012695,2]
[405984401,1771494646406,-500.0,0.00012695,2]
[405984402,1771494646416,-500.0,0.00012695,2]
[405984403,1771494646426,-500.0,0.00012695,2]
[405984404,1771494646436,-500.0,0.00012695,2]
[405984405,1771494646446,-500.0,0.00012695,2]
[405984406,1771494646456,-500.0,0.00012695,2]
[405984408,1771494646465,-500.0,0.00012695,2]
[405984409,1771494646475,-500.0,0.00012695,2]
[405984410,1771494646484,-500.0,0.00012695,2]
[405984411,1771494646493,-500.0,0.00012695,2]
[405984412,1771494646502,-243.05379411,0.00012695,2]
[405984413,1771494646513,-256.94620589,0.00012695,2]
[405984415,1771494646522,-500.0,0.00012695,2]
[405984417,1771494646531,-500.0,0.00012695,2]
[405984419,1771494646539,-500.0,0.00012695,2]
[405984421,1771494646548,-500.0,0.00012695,2]
[405984423,1771494646557,-500.0,0.00012695,2]
[405984425,1771494646566,-500.0,0.00012695,2]
[405984427,1771494646575,-500.0,0.00012695,2]
[405984428,1771494646585,-500.0,0.00012695,2]
[405984429,1771494646594,-500.0,0.00012695,2]
[405984430,1771494646603,-500.0,0.00012695,2]
[405984431,1771494646612,-500.0,0.00012695,2]
[405984432,1771494646621,-309.62468777,0.00012695,2]
[405984433,1771494646630,-500.0,0.00012695,2]
[405984434,1771494646639,-500.0,0.00012695,2]
[405984435,1771494646648,-500.0,0.00012695,2]
[405984436,1771494646657,-63.79062503,0.00012695,2]
[405984437,1771494646686,-436.20937497,0.00012695,2]
[405984438,1771494646695,-500.0,0.00012695,2]
[405984439,1771494646704,-134.38099285,0.00012695,2]
[405984442,1771495300438,-1220.12773055,0.00011617,2]
[405984443,1771495300477,-709.5833191,0.00011617,2]
[405984444,1771495329810,-220.12773055,0.00011617,2]
[405984445,1771495329844,-779.87226945,0.00011617,2]
[405984446,1771495359060,-70.12773055,0.00011675,2]
[405984447,1771495359083,-79.87226945,0.00011675,2]
[405984450,1771495628113,-235.0,0.00011501,2]
[405984451,1771495628133,-202.74958799,0.00011617,20]
[405984452,1771495628153,-150.0,0.00011617,2]
[405984453,1771495628172,-3195.9177034,0.00011734,2]
[405984454,1771495628193,-500.0,0.00012097,2]
[405984455,1771495628217,-269.35817559,0.00012097,2]
[405984456,1771495628237,-300.0,0.00012665,2]
[405984457,1771495628259,-500.0,0.00012666,2]
[405984458,1771495628281,-500.0,0.00012666,2]
[405984459,1771495628302,-500.0,0.00012666,2]
[405984460,1771495628325,-500.0,0.00012666,2]
[405984461,1771495628346,-500.0,0.00012666,2]
[405984462,1771495628368,-500.0,0.00012666,2]
[405984463,1771495628389,-500.0,0.00012666,2]
[405984464,1771495628409,-500.0,0.00012666,2]
[405984465,1771495628429,-500.0,0.00012666,2]
[405984466,1771495628451,-500.0,0.00012666,2]
[405984467,1771495628472,-500.0,0.00012666,2]
[405984468,1771495628494,-500.0,0.00012666,2]
[405984469,1771495628516,-500.0,0.00012666,2]
[405984470,1771495628536,-500.0,0.00012666,2]
[405984471,1771495628557,-500.0,0.00012666,2]
[405984472,1771495628578,-500.0,0.00012666,2]
[405984473,1771495628600,-500.0,0.00012666,2]
[405984474,1771495628621,-500.0,0.00012666,2]
[405984475,1771495628642,-500.0,0.00012666,2]
[405984476,1771495628663,-500.0,0.00012666,2]
[405984477,1771495628684,-500.0,0.00012666,2]
[405984478,1771495628704,-500.0,0.00012666,2]
[405984479,1771495628726,-480.96246878,0.00012666,2]
[405984480,1771495628747,-500.0,0.00012666,2]
[405984481,1771495628767,-500.0,0.00012666,2]
[405984482,1771495628787,-500.0,0.00012666,2]
[405984483,1771495628807,-500.0,0.00012666,2]
[405984484,1771495628828,-500.0,0.00012666,2]
[405984485,1771495628851,-500.0,0.00012666,2]
[405984486,1771495628872,-500.0,0.00012666,2]
[405984487,1771495628895,-500.0,0.00012666,2]
[405984488,1771495628916,-500.0,0.00012666,2]
[405984489,1771495628938,-500.0,0.00012666,2]
[405984490,1771495628960,-500.0,0.00012666,2]
[405984491,1771495628981,-500.0,0.00012666,2]
[405984492,1771495629001,-500.0,0.00012666,2]
[405984493,1771495629021,-397.52080495,0.00012666,2]
[405984494,1771495629041,-500.0,0.00012666,2]
[405984495,1771495629061,-500.0,0.00012666,2]
[405984496,1771495629081,-500.0,0.00012666,2]
[405984497,1771495629103,-500.0,0.00012666,2]
[405984498,1771495629123,-208.0,0.00012666,2]
[405984499,1771495629145,-300.0,0.00012666,2]
[405984500,1771495629165,-1200.0,0.00012666,2]
[405984501,1771495629185,-279.80099988,0.00012667,2]
[405984502,1771495629206,-6992.4027532,0.0001267,2]
[405984503,1771495629229,-166.8410117,0.0001267,2]
[405984504,1771495629250,-222.0686831,0.0001267,2]
[405984505,1771495629269,-9496.6126763,0.00012697,2]
[405984506,1771495629290,-2209.25638665,0.000129,2]
[405984507,1771495629310,-500.0,0.00013273,2]
[405984508,1771495629329,-500.0,0.00013273,2]
[405984509,1771495629348,-500.0,0.00013273,2]
[405984510,1771495629367,-500.0,0.00013273,2]
[405984511,1771495629386,-500.0,0.00013273,2]
[405984512,1771495629406,-242.49305971,0.00013535,2]
[405984513,1771495629426,-177.0,0.00013617,2]
[405984514,1771495629447,-500.0,0.00013698,2]
[405984515,1771495629468,-500.0,0.00013698,2]
[405984516,1771495629486,-387.68444032,0.00013698,2]
[405984517,1771495629505,-1537.49,0.00013698,2]
[405984518,1771495629524,-1537.49,0.00013698,2]
[405984519,1771495629543,-610.41558134,0.00013698,2]
[405984520,1771495629562,-2023.920016,0.00013699,2]
[405984521,1771495629582,-500.0,0.00013699,2]
[405984522,1771495629600,-500.0,0.00013699,2]
[405984523,1771495629620,-500.0,0.00013699,2]
[405984524,1771495629640,-500.0,0.00013699,2]
[405984525,1771495629661,-500.0,0.00013699,2]
[405984526,1771495629681,-500.0,0.00013699,2]
[405984527,1771495629701,-500.0,0.00013699,2]
[405984528,1771495629725,-500.0,0.00013699,2]
[405984529,1771495629744,-500.0,0.00013699,2]
[405984530,1771495629764,-500.0,0.00013699,2]
[405984531,1771495629792,-500.0,0.00013699,2]
[405984532,1771495629904,-500.0,0.00013699,2]
[405984533,1771495629927,-595.87941196,0.00013699,2]
[405984534,1771495629948,-500.0,0.00013699,2]
[405984535,1771495629967,-613.00801976,0.00013821,2]
[405984536,1771495629985,-512.96938194,0.00013821,2]
[405984537,1771495630004,-1000.0,0.00013821,2]
[405984538,1771495630025,-879.22880978,0.00013821,2]
[405984539,1771495630044,-1000.0,0.00013821,2]
[405984540,1771495630064,-420.0,0.00013894,2]
[405984541,1771495630083,-1680.0,0.00013933,2]
[405984542,1771495630102,-1409.29499578,0.00014175,2]
[405984543,1771495630120,-1537.49,0.00014246,2]
[405984544,1771495630139,-1000.0,0.00014247,2]
[405984545,1771495630158,-1000.0,0.00014247,2]
[405984546,1771495630176,-451.05264262,0.00014368,2]
[405984547,1771495630195,-1635.96258974,0.00014368,2]
[405984548,1771495630219,-500.0,0.00014795,2]
[405984549,1771495630237,-500.0,0.00014795,2]
[405984550,1771495630258,-1560.2159461,0.00014795,2]
[405984551,1771495630277,-500.0,0.00015007,2]
[405984552,1771495630296,-500.0,0.00015007,2]
[405984553,1771495630314,-155.25764584,0.00015007,2]
[405984554,1771495630332,-500.0,0.00015007,2]
[405984555,1771495630352,-183.81875,0.00015068,2]
[405984556,1771495630372,-587.0,0.00015242,2]
[405984557,1771495630393,-348.1312339,0.00015269,2]
[405984558,1771495630414,-1200.0,0.00015326,2]
[405984559,1771495630435,-2668.58999169,0.00015451,2]
[405984560,1771495630455,-595.0,0.00015599,2]
[405984561,1771495630475,-272.51127823,0.00015617,2]
[405984562,1771495630494,-151.0,0.00016438,2]
[405984563,1771495630513,-2209.25638664,0.00016474,2]
[405984564,1771495630532,-823.0,0.00016721,2]
[405984565,1771495630551,-2723.34194789,0.00016727,2]
[405984566,1771495630570,-1537.49,0.00017597,2]
[405984567,1771495630588,-21851.85424817,0.00017598,2]
[405984568,1771495630607,-151.0,0.00017598,2]
[405984569,1771495630627,-2887.59781691,0.00018004,2]
[405984570,1771495630647,-500.0,0.00018095,2]
[405984571,1771495630668,-880.0,0.00018344,2]
[405984572,1771495630686,-1537.49,0.00018347,2]
[405984573,1771495630705,-151.0,0.00019178,2]
[405984574,1771495630726,-189.0,0.00019601,120]
[405984575,1771495630744,-505.82,0.00019609,3]
[405984576,1771495630763,-252.91,0.00019609,3]
[405984577,1771495630782,-758.77,0.00019609,3]
[405984578,1771495630801,-387.19168472,0.00019619,2]
[405984579,1771495630820,-187.78006525,0.00019619,2]
[405984580,1771495630839,-194.72792766,0.00019619,2]
[405984581,1771495630859,-201.93286099,0.00019619,2]
[405984582,1771495630879,-209.40437684,0.00019619,2]
[405984583,1771495630900,-250.0,0.00019619,2]
[405984584,1771495630920,-217.15233878,0.00019619,2]
[405984585,1771495630939,-250.0,0.00019619,2]
[405984586,1771495630958,-225.18697532,0.00019619,2]
[405984587,1771495630977,-250.0,0.00019619,2]
[405984588,1771495630997,-233.51889341,0.00019619,2]
[405984589,1771495631017,-250.0,0.00019619,2]
[405984590,1771495631036,-242.15909246,0.00019619,2]
[405984591,1771495631055,-250.0,0.00019619,2]
[405984592,1771495631074,-251.11897888,0.00019619,2]
[405984593,1771495631093,-250.0,0.00019619,2]
[405984594,1771495631112,-250.0,0.00019619,2]
[405984595,1771495631132,-250.0,0.00019619,2]
[405984596,1771495631151,-250.0,0.00019619,2]
[405984597,1771495631170,-250.0,0.00019619,2]
[405984598,1771495631188,-270.0455652,0.00019619,2]
[405984599,1771495631210,-250.0,0.00019619,2]
[405984600,1771495631229,-280.03725112,0.00019619,2]
[405984601,1771495631247,-250.0,0.00019619,2]
[405984602,1771495631267,-290.39862941,0.00019619,2]
[405984603,1771495631287,-250.0,0.00019619,2]
[405984604,1771495631306,-162.5604704,0.00019619,2]
[405984624,1771495832381,-208.6507382,0.00012566,2]
[405984626,1771495832391,-500.0,0.00012665,2]
[405984628,1771495832401,-500.0,0.00012665,2]
[405984630,1771495832411,-488.61342277,0.00012665,2]
[405984632,1771495832421,-500.0,0.00012665,2]
[405984633,1771495832431,-275.66249653,0.00012665,2]
[405984634,1771495832440,-500.0,0.00013699,2]
[405984636,1771495832449,-177.31993466,0.00013699,2]
[405984637,1771495832459,-1656.94228998,0.00019519,2]
[405984639,1771495832469,-60.26009056,0.00019619,2]
[405984655,1771495838483,-2480.26882621,0.00019619,2]
[405984656,1771495838495,-3812.85392346,0.00019619,2]
[405984657,1771495838507,-1425.70199351,0.00019619,2]
[405984658,1771495838519,-9594.62300176,0.00019619,2]
[405984659,1771495838529,-166.0,0.00019911,2]
[405984660,1771495838539,-153.0,0.00019911,2]
[405984662,1771495838550,-153.0,0.00019911,2]
[405984663,1771495838559,-153.0,0.00019911,2]
[405984664,1771495838569,-153.0,0.00019911,2]
[405984666,1771495838579,-153.0,0.00019911,2]
[405984667,1771495838590,-153.0,0.00019911,2]
[405984669,1771495838599,-153.0,0.00019911,2]
[405984670,1771495838609,-153.0,0.00019911,2]
[405984671,1771495838618,-337.0,0.00019911,2]
[405984672,1771495838628,-337.0,0.00019911,2]
[405984673,1771495838638,-337.0,0.00019911,2]
[405984674,1771495838647,-337.0,0.00019911,2]
[405984675,1771495838657,-328.77462695,0.00019978,2]
[405984676,1771495838666,-175.27409121,0.00019978,2]
[405984677,1771495838675,-252.45965558,0.00019978,2]
[405984678,1771495838684,-454.42738004,0.00019978,2]
[405984679,1771495838693,-807.87089785,0.00019978,2]
[405984680,1771495838703,-1537.49,0.00019998,2]
[405984681,1771495838713,-9528.44780498,0.0002,2]
[405984707,1771495847822,-222.11142417,0.00012566,2]
[405984708,1771495847833,-299.6583337,0.00019618,2]
[405984709,1771495847842,-1153.12,0.00019618,2]
[405984710,1771495847855,-1153.12,0.00019999,2]
[405984711,1771495847864,-195.86069991,0.00019999,2]
[405984712,1771495847873,-8952.46485803,0.0002,2]